fUSD/lending_fUSD_20250824
["ID","MTS","AMOUNT","RATE_DAILY","PERIOD"]
[381109307,1756048251042,-400.0,0.00022941,2]
[381109308,1756048251052,-744.77,0.00022941,2]
[381109309,1756048251062,-563.44,0.00022941,2]
[381109310,1756048251071,-1351.04,0.00022941,2]
[381109311,1756048251081,-400.0,0.00022941,2]
[381109312,1756048251090,-400.2512688,0.00022941,2]
[381109313,1756048251100,-400.0,0.00022941,2]
[381109314,1756048251109,-400.0,0.00022941,2]
[381109315,1756048251119,-400.0,0.00022941,2]
[381109316,1756048251128,-400.0,0.00022941,2]
[381109317,1756048251138,-722.83,0.00022941,2]
[381109318,1756048251147,-400.0,0.00022941,2]
[381109319,1756048251156,-400.0,0.00022941,2]
[381109320,1756048251165,-400.0,0.00022941,2]
[381109321,1756048251177,-400.0,0.00022941,2]
[381109322,1756048251187,-701.83,0.00022941,2]
[381109323,1756048251197,-736.15,0.00022941,2]
[381109324,1756048251207,-403.49,0.00022941,2]
[381109325,1756048251217,-400.0,0.00022941,2]
[381109326,1756048251227,-425.01,0.00022941,2]
[381109327,1756048251236,-523.8,0.00022941,2]
[381109328,1756048251245,-980.92,0.00022941,2]
[381109329,1756048251256,-400.0,0.00022941,2]
[381109330,1756048251266,-1315.71,0.00022941,2]
[381109331,1756048251276,-400.0,0.00022941,2]
[381109332,1756048251286,-400.0,0.00022941,2]
[381109333,1756048251295,-400.0,0.00022941,2]
[381109334,1756048251305,-400.0,0.00022941,2]
[381109335,1756048251315,-400.0,0.00022941,2]
[381109336,1756048251324,-400.0,0.00022941,2]
[381109337,1756048251333,-696.07,0.00022941,2]
[381109338,1756048251343,-400.0,0.00022941,2]
[381109339,1756048251353,-549.99,0.00022941,2]
[381109340,1756048251363,-400.0,0.00022941,2]
[381109341,1756048251372,-400.0,0.00022941,2]
[381109342,1756048251382,-898.01,0.00022941,2]
[381109343,1756048251392,-673.7,0.00022941,2]
[381109344,1756048251401,-667.37,0.00022941,2]
[381109345,1756048251411,-752.38,0.00022941,2]
[381109346,1756048251421,-400.0,0.00022941,2]
[381109347,1756048251431,-400.0,0.00022941,2]
[381109348,1756048251441,-400.0,0.00022941,2]
[381109349,1756048251451,-400.0,0.00022941,2]
[381109350,1756048251461,-400.0,0.00022941,2]
[381109351,1756048251470,-400.0,0.00022941,2]
[381109352,1756048251480,-977.5,0.00022941,2]
[381109353,1756048251490,-400.0,0.00022941,2]
[381109354,1756048251499,-400.0,0.00022941,2]
[381109355,1756048251509,-400.0,0.00022941,2]
[381109356,1756048251519,-400.0,0.00022941,2]
[381109357,1756048251528,-1022.49,0.00022941,2]
[381109358,1756048251537,-400.0,0.00022941,2]
[381109359,1756048251547,-400.0,0.00022941,2]
[381109360,1756048251557,-400.0,0.00022941,2]
[381109361,1756048251566,-400.0,0.00022941,2]
[381109362,1756048251576,-400.0,0.00022941,2]
[381109363,1756048251585,-400.0,0.00022941,2]
[381109364,1756048251594,-400.0,0.00022941,2]
[381109365,1756048251604,-539.62,0.00022941,2]
[381109366,1756048251613,-468.2,0.00022941,2]
[381109367,1756048251622,-386.58,0.00022941,2]
[381109368,1756048251632,-1732.36,0.00022941,2]
[381109369,1756048251641,-575.94,0.00022941,2]
[381109370,1756048251651,-400.0,0.00022941,2]
[381109371,1756048251660,-400.0,0.00022941,2]
[381109372,1756048251670,-400.0,0.00022941,2]
[381109373,1756048251680,-1020.53,0.00022941,2]
[381109374,1756048251690,-400.0,0.00022941,2]
[381109375,1756048251699,-651.51,0.00022941,2]
[381109376,1756048251709,-400.0,0.00022941,2]
[381109377,1756048251719,-401.11288837,0.00022941,2]
[381109378,1756048251729,-400.0,0.00022941,2]
[381109379,1756048251738,-400.0,0.00022941,2]
[381109380,1756048251748,-749.11,0.00022941,2]
[381109381,1756048251758,-482.45,0.00022941,2]
[381109382,1756048251767,-400.0,0.00022941,2]
[381109383,1756048251777,-400.0,0.00022941,2]
[381109384,1756048251787,-400.0,0.00022941,2]
[381109385,1756048251797,-400.0,0.00022941,2]
[381109386,1756048251806,-400.0,0.00022941,2]
[381109387,1756048251817,-635.29,0.00022941,2]
[381109388,1756048251826,-511.62,0.00022941,2]
[381109389,1756048251837,-400.0,0.00022941,2]
[381109390,1756048251847,-673.94,0.00022941,2]
[381109391,1756048251857,-400.0,0.00022941,2]
[381109392,1756048251868,-400.0,0.00022941,2]
[381109393,1756048251878,-788.06656161,0.00022941,2]
[381109394,1756048252018,-100.58343839,0.00022941,2]
[381109395,1756048252029,-400.0,0.00022941,2]
[381109396,1756048252038,-400.0,0.00022941,2]
[381109397,1756048252048,-535.74,0.00022941,2]
[381109398,1756048252059,-400.0,0.00022941,2]
[381109399,1756048252068,-400.0,0.00022941,2]
[381109400,1756048252079,-6.08687368,0.00022941,2]
[381109401,1756048252090,-393.91312632,0.00022941,2]
[381109402,1756048252100,-400.0,0.00022941,2]
[381109403,1756048252110,-353.19861328,0.00022941,2]
[381109404,1756048252121,-46.80138672,0.00022941,2]
[381109405,1756048252131,-1281.35,0.00022941,2]
[381109406,1756048252141,-468.09861328,0.00022941,2]
[381109407,1756048253234,-400.0,0.00022191,2]
[381109408,1756048253244,-400.0,0.00022464,2]
[381109409,1756048253255,-401.94,0.00022465,2]
[381109410,1756048253265,-0.462,0.00022465,2]
[381109411,1756048253376,-499.538,0.00022465,2]
[381109412,1756048253386,-402.1018706,0.00022667,2]
[381109413,1756048253396,-514.25,0.00022667,2]
[381109414,1756048253406,-400.0,0.00022667,2]
[381109415,1756048253416,-400.0,0.00022738,2]
[381109416,1756048253427,-509.40006506,0.00022739,2]
[381109417,1756048253437,-400.0,0.0002294,2]
[381109418,1756048253447,-245.02138672,0.00022941,2]
[381109419,1756048253456,-400.0,0.00022941,2]
[381109420,1756048253466,-852.69,0.00022941,2]
[381109421,1756048253476,-501.86,0.00022941,2]
[381109422,1756048253486,-1152.24,0.00022941,2]
[381109423,1756048253496,-1082.5,0.00022941,2]
[381109424,1756048253505,-400.0,0.00022941,2]
[381109425,1756048253518,-307.06,0.00022941,2]
[381109426,1756048253528,-400.0,0.00022941,2]
[381109427,1756048253537,-641.09,0.00022941,2]
[381109428,1756048253547,-600.8,0.00022941,2]
[381109429,1756048253557,-690.63,0.00022941,2]
[381109430,1756048253566,-919.96,0.00022941,2]
[381109431,1756048253575,-457.14,0.00022941,2]
[381109432,1756048253586,-914.59,0.00022941,2]
[381109433,1756048253595,-400.0,0.00022941,2]
[381109434,1756048253605,-1399.87,0.00022941,2]
[381109435,1756048253615,-611.44,0.00022941,2]
[381109436,1756048253624,-2650.07,0.00022941,2]
[381109437,1756048253634,-400.0,0.00022941,2]
[381109438,1756048253644,-1592.63,0.00022941,2]
[381109439,1756048253654,-634.49,0.00022941,2]
[381109440,1756048253664,-400.0,0.00022941,2]
[381109441,1756048253675,-1290.49,0.00022941,2]
[381109442,1756048253685,-400.0,0.00022941,2]
[381109443,1756048253695,-688.28,0.00022941,2]
[381109444,1756048253705,-300.96677159,0.00022941,2]
[381109445,1756048253714,-400.0,0.00022941,2]
[381109446,1756048253724,-671.48,0.00022941,2]
[381109447,1756048253734,-400.0,0.00022941,2]
[381109448,1756048253743,-436.07,0.00022941,2]
[381109449,1756048253752,-523.43,0.00022941,2]
[381109450,1756048253762,-400.0,0.00022941,2]
[381109451,1756048253772,-400.0,0.00022941,2]
[381109452,1756048253782,-1244.13,0.00022941,2]
[381109453,1756048253791,-921.44,0.00022941,2]
[381109454,1756048253801,-1098.27,0.00022941,2]
[381109455,1756048253810,-400.0,0.00022941,2]
[381109456,1756048253820,-384.67590032,0.00022941,2]
[381109457,1756048253830,-400.0,0.00022941,2]
[381109458,1756048253839,-422.69,0.00022941,2]
[381109459,1756048253849,-400.0,0.00022941,2]
[381109460,1756048253858,-400.0,0.00022941,2]
[381109461,1756048253867,-1158.27,0.00022941,2]
[381109462,1756048253877,-431.23,0.00022941,2]
[381109463,1756048253887,-400.0,0.00022941,2]
[381109464,1756048253897,-433.3,0.00022941,2]
[381109465,1756048253907,-1629.96,0.00022941,2]
[381109466,1756048253916,-785.21,0.00022941,2]
[381109467,1756048253927,-711.14,0.00022941,2]
[381109468,1756048253936,-2522.49,0.00022941,2]
[381109469,1756048253946,-400.0,0.00022941,2]
[381109470,1756048253955,-702.46,0.00022941,2]
[381109471,1756048253965,-400.0,0.00022941,2]
[381109472,1756048253974,-400.0,0.00022941,2]
[381109473,1756048253984,-723.48,0.00022941,2]
[381109474,1756048253993,-395.73145514,0.00022941,2]
[381109475,1756048254003,-400.0,0.00022941,2]
[381109476,1756048254013,-400.0,0.00022941,2]
[381109477,1756048254023,-1286.5,0.00022941,2]
[381109478,1756048254032,-511.77,0.00022941,2]
[381109479,1756048254043,-401.34,0.00022941,2]
[381109480,1756048254054,-400.0,0.00022941,2]
[381109481,1756048254064,-2332.85,0.00022941,2]
[381109482,1756048254073,-718.36,0.00022941,2]
[381109483,1756048254083,-400.0,0.00022941,2]
[381109484,1756048254093,-401.07099242,0.00022941,2]
[381109485,1756048254103,-875.72,0.00022941,2]
[381109486,1756048254113,-400.0,0.00022941,2]
[381109487,1756048254123,-640.23,0.00022941,2]
[381109488,1756048254133,-400.0,0.00022941,2]
[381109489,1756048254142,-830.47,0.00022941,2]
[381109490,1756048254152,-400.0,0.00022941,2]
[381109491,1756048254162,-400.0,0.00022941,2]
[381109492,1756048254172,-778.18,0.00022941,2]
[381109493,1756048254186,-1432.96,0.00022941,2]
[381109494,1756048254195,-563.46,0.00022941,2]
[381109495,1756048254205,-982.45,0.00022941,2]
[381109496,1756048254214,-400.0,0.00022941,2]
[381109497,1756048254225,-428.21,0.00022941,2]
[381109498,1756048254235,-1068.18,0.00022941,2]
[381109499,1756048254245,-604.46,0.00022941,2]
[381109500,1756048254256,-730.75,0.00022941,2]
[381109501,1756048254266,-400.0,0.00022941,2]
[381109502,1756048254276,-1502.99,0.00022941,2]
[381109503,1756048254285,-400.0,0.00022941,2]
[381109504,1756048254295,-555.36,0.00022941,2]
[381109505,1756048254305,-622.5,0.00022941,2]
[381109506,1756048254315,-400.0,0.00022941,2]
[381109507,1756048254324,-400.0,0.00022941,2]
[381109508,1756048254334,-1348.77,0.00022941,2]
[381109509,1756048254343,-400.0,0.00022941,2]
[381109510,1756048254353,-666.27,0.00022941,2]
[381109511,1756048254363,-459.56,0.00022941,2]
[381109512,1756048254373,-1863.21,0.00022941,2]
[381109513,1756048254382,-579.9,0.00022941,2]
[381109514,1756048254392,-400.0,0.00022941,2]
[381109515,1756048254402,-1300.21,0.00022941,2]
[381109516,1756048254412,-876.32,0.00022941,2]
[381109517,1756048254421,-874.59,0.00022941,2]
[381109518,1756048254431,-400.0,0.00022941,2]
[381109519,1756048254441,-400.0,0.00022941,2]
[381109520,1756048254450,-400.0,0.00022941,2]
[381109521,1756048254459,-400.0,0.00022941,2]
[381109522,1756048254469,-400.0,0.00022941,2]
[381109523,1756048254478,-400.0,0.00022941,2]
[381109524,1756048254488,-400.0,0.00022941,2]
[381109525,1756048254498,-400.0,0.00022941,2]
[381109526,1756048254507,-1062.82,0.00022941,2]
[381109527,1756048254517,-551.32,0.00022941,2]
[381109528,1756048254526,-400.0,0.00022941,2]
[381109529,1756048254536,-400.0,0.00022941,2]
[381109530,1756048254546,-1991.4,0.00022941,2]
[381109531,1756048254555,-400.0,0.00022941,2]
[381109532,1756048254565,-1118.48,0.00022941,2]
[381109533,1756048254574,-1432.04,0.00022941,2]
[381109534,1756048254583,-518.11171571,0.00022941,2]
[381109535,1756048254593,-408.96,0.00022941,2]
[381109536,1756048254602,-777.8,0.00022941,2]
[381109537,1756048254611,-833.82,0.00022941,2]
[381109538,1756048254621,-721.88,0.00022941,2]
[381109539,1756048254630,-400.0,0.00022941,2]
[381109540,1756048254640,-400.0,0.00022941,2]
[381109541,1756048254650,-3238.15,0.00022941,2]
[381109542,1756048254659,-500.81,0.00022941,2]
[381109543,1756048254668,-400.0,0.00022941,2]
[381109544,1756048254678,-490.77,0.00022941,2]
[381109545,1756048254687,-400.0,0.00022941,2]
[381109546,1756048254696,-493.57630818,0.00022941,2]
[381109547,1756048254706,-874.8,0.00022941,2]
[381109548,1756048254715,-400.0,0.00022941,2]
[381109549,1756048254724,-1714.07,0.00022941,2]
[381109550,1756048254734,-1214.99,0.00022941,2]
[381109551,1756048254743,-400.0,0.00022941,2]
[381109552,1756048254753,-400.0,0.00022941,2]
[381109553,1756048254763,-400.0,0.00022941,2]
[381109554,1756048254773,-400.0,0.00022941,2]
[381109555,1756048254783,-400.0,0.00022941,2]
[381109556,1756048254793,-650.21,0.00022941,2]
[381109557,1756048254802,-400.0,0.00022941,2]
[381109558,1756048254811,-492.43,0.00022941,2]
[381109559,1756048254821,-400.0,0.00022941,2]
[381109560,1756048254831,-400.0,0.00022941,2]
[381109561,1756048254841,-762.07,0.00022941,2]
[381109562,1756048254850,-401.84223242,0.00022941,2]
[381109563,1756048254860,-400.0,0.00022941,2]
[381109564,1756048254870,-745.2,0.00022941,2]
[381109565,1756048254880,-1363.07,0.00022941,2]
[381109566,1756048254890,-400.0,0.00022941,2]
[381109567,1756048254900,-1368.6,0.00022941,2]
[381109568,1756048254911,-1043.15,0.00022941,2]
[381109569,1756048254920,-1481.18,0.00022941,2]
[381109570,1756048254930,-405.69,0.00022941,2]
[381109571,1756048254940,-400.0,0.00022941,2]
[381109572,1756048254950,-402.22423581,0.00022941,2]
[381109573,1756048255062,-400.0,0.00022941,2]
[381109574,1756048255073,-400.0,0.00022941,2]
[381109575,1756048255083,-400.0,0.00022941,2]
[381109576,1756048255094,-514.25,0.00022941,2]
[381109577,1756048255104,-400.0,0.00022941,2]
[381109578,1756048255114,-500.0,0.00022944,2]
[381109579,1756048255126,-161.0,0.00023,7]
[381109580,1756048255136,-400.0,0.00023012,2]
[381109581,1756048255146,-400.0,0.00023012,2]
[381109582,1756048255156,-400.0,0.00023012,2]
[381109583,1756048255166,-400.0,0.00023012,2]
[381109584,1756048255181,-400.0,0.00023012,2]
[381109585,1756048255191,-400.0,0.00023012,2]
[381109586,1756048255201,-400.0,0.00023012,2]
[381109587,1756048255211,-400.0,0.00023012,2]
[381109588,1756048255221,-790.12,0.00023012,2]
[381109589,1756048255230,-400.0,0.00023012,2]
[381109590,1756048255239,-400.0,0.00023012,2]
[381109591,1756048255249,-400.0,0.00023012,2]
[381109592,1756048255260,-400.0,0.00023012,2]
[381109593,1756048255269,-400.0,0.00023012,2]
[381109594,1756048255279,-400.0,0.00023012,2]
[381109595,1756048255288,-872.51,0.00023012,2]
[381109596,1756048255298,-400.0,0.00023012,2]
[381109597,1756048255307,-1136.67,0.00023012,2]
[381109598,1756048255316,-420.71557305,0.00023012,2]
[381109599,1756048255326,-331.48,0.00023012,2]
[381109600,1756048255336,-300.0,0.00023013,2]
[381109601,1756048255346,-500.0,0.00023013,2]
[381109602,1756048255355,-563.8964288,0.00023013,2]
[381109603,1756048255364,-150.0,0.00023013,2]
[381109604,1756048255373,-500.0,0.00023013,2]
[381109605,1756048255382,-150.0,0.00023013,2]
[381109606,1756048255392,-500.0,0.00023013,2]
[381109607,1756048255401,-900.39,0.00023013,2]
[381109608,1756048255410,-955.09,0.00023013,2]
[381109609,1756048255420,-406.36,0.00023013,2]
[381109610,1756048255431,-1120.93,0.00023013,2]
[381109611,1756048255440,-1254.62,0.00023013,2]
[381109612,1756048255449,-529.14,0.00023013,2]
[381109613,1756048255459,-1179.48,0.00023013,2]
[381109614,1756048255468,-400.0,0.00023013,2]
[381109615,1756048255477,-1000.0,0.00023013,2]
[381109616,1756048255487,-815.67,0.00023013,2]
[381109617,1756048255497,-400.0,0.00023013,2]
[381109618,1756048255506,-400.0,0.00023013,2]
[381109619,1756048255515,-594.73,0.00023013,2]
[381109620,1756048255525,-426.52,0.00023013,2]
[381109621,1756048255534,-1163.16,0.00023013,2]
[381109622,1756048255544,-400.0,0.00023013,2]
[381109623,1756048255553,-400.0,0.00023013,2]
[381109624,1756048255562,-1294.68,0.00023013,2]
[381109625,1756048255571,-764.89,0.00023013,2]
[381109626,1756048255581,-946.46,0.00023013,2]
[381109627,1756048255590,-1519.85,0.00023013,2]
[381109628,1756048255600,-947.85,0.00023013,2]
[381109629,1756048255609,-903.54,0.00023013,2]
[381109630,1756048255619,-602.16,0.00023013,2]
[381109631,1756048255629,-400.0,0.00023013,2]
[381109632,1756048255639,-882.04,0.00023013,2]
[381109633,1756048255648,-1507.96,0.00023013,2]
[381109634,1756048255660,-1010.46,0.00023013,2]
[381109635,1756048255669,-664.63,0.00023013,2]
[381109636,1756048255680,-1134.05,0.00023013,2]
[381109637,1756048255690,-673.1,0.00023013,2]
[381109638,1756048255699,-1066.56,0.00023013,2]
[381109639,1756048255708,-1141.34,0.00023013,2]
[381109640,1756048255717,-998.28,0.00023013,2]
[381109641,1756048255727,-907.21,0.00023013,2]
[381109642,1756048255736,-954.18,0.00023013,2]
[381109643,1756048255746,-612.04,0.00023013,2]
[381109644,1756048255755,-753.5,0.00023013,2]
[381109645,1756048255764,-1324.07,0.00023013,2]
[381109646,1756048255774,-1363.26,0.00023013,2]
[381109647,1756048255783,-597.1,0.00023013,2]
[381109648,1756048255793,-1035.67,0.00023013,2]
[381109649,1756048255802,-938.79,0.00023013,2]
[381109650,1756048255811,-400.0,0.00023013,2]
[381109651,1756048255820,-1180.53,0.00023013,2]
[381109652,1756048255829,-1193.88,0.00023013,2]
[381109653,1756048255838,-840.64,0.00023013,2]
[381109654,1756048255847,-994.16,0.00023013,2]
[381109655,1756048255856,-400.0,0.00023013,2]
[381109656,1756048255865,-6067.37,0.00023013,2]
[381109657,1756048255875,-1141.53,0.00023013,2]
[381109658,1756048255884,-1958.66,0.00023013,2]
[381109659,1756048255893,-1241.77,0.00023013,2]
[381109660,1756048255902,-912.12,0.00023013,2]
[381109661,1756048255912,-2951.91,0.00023013,2]
[381109662,1756048255922,-949.95,0.00023013,2]
[381109663,1756048255931,-792.45,0.00023013,2]
[381109664,1756048255941,-2276.74,0.00023013,2]
[381109665,1756048255950,-595.08,0.00023013,2]
[381109666,1756048255959,-589.71,0.00023013,2]
[381109667,1756048255969,-1113.91,0.00023013,2]
[381109668,1756048255978,-5112.41,0.00023013,2]
[381109669,1756048255987,-1320.28,0.00023013,2]
[381109670,1756048255996,-1073.93,0.00023013,2]
[381109671,1756048256006,-678.72,0.00023013,2]
[381109672,1756048256015,-400.0,0.00023013,2]
[381109673,1756048256024,-1080.22,0.00023013,2]
[381109674,1756048256033,-1512.46,0.00023013,2]
[381109675,1756048256043,-2012.13,0.00023013,2]
[381109676,1756048256052,-1244.54,0.00023013,2]
[381109677,1756048256061,-686.05,0.00023013,2]
[381109678,1756048256071,-960.14,0.00023013,2]
[381109679,1756048256080,-1207.24,0.00023013,2]
[381109680,1756048256089,-2129.76,0.00023013,2]
[381109681,1756048256098,-1383.97,0.00023013,2]
[381109682,1756048256107,-1390.93,0.00023013,2]
[381109683,1756048256116,-992.27,0.00023013,2]
[381109684,1756048256125,-1447.01,0.00023013,2]
[381109685,1756048256134,-3365.74,0.00023013,2]
[381109686,1756048256143,-3660.5558134,0.00023054,2]
[381109687,1756048256152,-4510.6031579,0.00023062,2]
[381109688,1756048256161,-322.6107,0.00023109,2]
[381109689,1756048256171,-1000.0,0.00023109,2]
[381109690,1756048256183,-160.0,0.00023109,2]
[381109691,1756048256193,-155.63142337,0.00023109,2]
[381109692,1756048256202,-2893.26933442,0.00023109,2]
[381109693,1756048256211,-1064.60869414,0.00023109,2]
[381109694,1756048256221,-303.64509572,0.00023109,2]
[381109695,1756048256232,-1065.76919056,0.00023109,2]
[381109696,1756048256241,-257.91778498,0.00023109,2]
[381109697,1756048256251,-670.58624095,0.00023109,2]
[381109698,1756048256260,-337.3623858,0.00023109,2]
[381109699,1756048256270,-300.0,0.00023109,2]
[381109700,1756048256280,-154.59098325,0.00023115,2]
[381109701,1756048256289,-500.87000414,0.00023136,2]
[381109702,1756048256298,-2351.0,0.00023156,2]
[381109703,1756048256308,-327.0,0.000232,2]
[381109704,1756048256318,-229.25702148,0.00023204,2]
[381109705,1756048256327,-11063.85,0.00023213,2]
[381109706,1756048256336,-501.21427448,0.00023214,2]
[381109707,1756048256347,-899.07,0.00023214,2]
[381109708,1756048256356,-795.46,0.00023214,2]
[381109709,1756048256365,-400.0,0.00023214,2]
[381109710,1756048256374,-580.49,0.00023214,2]
[381109711,1756048256384,-400.0,0.00023214,2]
[381109712,1756048256393,-400.0,0.00023214,2]
[381109713,1756048256402,-400.0,0.00023214,2]
[381109714,1756048256412,-400.0,0.00023214,2]
[381109715,1756048256422,-400.0,0.00023214,2]
[381109716,1756048256432,-698.47,0.00023214,2]
[381109717,1756048256441,-400.64929256,0.00023214,2]
[381109718,1756048256450,-400.0,0.00023214,2]
[381109719,1756048256459,-400.0,0.00023214,2]
[381109720,1756048256468,-1146.37,0.00023214,2]
[381109721,1756048256478,-1298.53,0.00023214,2]
[381109722,1756048256487,-400.0,0.00023214,2]
[381109723,1756048256496,-508.37,0.00023214,2]
[381109724,1756048256505,-400.0,0.00023214,2]
[381109725,1756048256514,-400.0,0.00023214,2]
[381109726,1756048256523,-935.95,0.00023214,2]
[381109727,1756048256532,-400.0,0.00023214,2]
[381109728,1756048256541,-400.0,0.00023214,2]
[381109729,1756048256550,-400.0,0.00023214,2]
[381109730,1756048256560,-400.0,0.00023214,2]
[381109731,1756048256569,-400.0,0.00023214,2]
[381109732,1756048256578,-400.0,0.00023214,2]
[381109733,1756048256587,-785.35,0.00023214,2]
[381109734,1756048256597,-400.0,0.00023214,2]
[381109735,1756048256606,-400.0,0.00023214,2]
[381109736,1756048256616,-1182.85,0.00023214,2]
[381109737,1756048256626,-400.0,0.00023214,2]
[381109738,1756048256635,-400.0,0.00023214,2]
[381109739,1756048256645,-400.0,0.00023214,2]
[381109740,1756048256655,-622.97,0.00023214,2]
[381109741,1756048256665,-400.0,0.00023214,2]
[381109742,1756048256676,-468.85,0.00023214,2]
[381109743,1756048256687,-400.0,0.00023214,2]
[381109744,1756048256697,-400.0,0.00023214,2]
[381109745,1756048256706,-400.0,0.00023214,2]
[381109746,1756048256715,-400.0,0.00023214,2]
[381109747,1756048256724,-511.68,0.00023214,2]
[381109748,1756048256733,-1015.61,0.00023214,2]
[381109749,1756048256743,-400.0,0.00023214,2]
[381109750,1756048256751,-400.0,0.00023214,2]
[381109751,1756048256761,-698.2,0.00023214,2]
[381109752,1756048256770,-400.0,0.00023214,2]
[381109753,1756048256779,-400.0,0.00023214,2]
[381109754,1756048256788,-400.0,0.00023214,2]
[381109755,1756048256799,-403.99,0.00023214,2]
[381109756,1756048256808,-400.0,0.00023214,2]
[381109757,1756048256817,-400.0,0.00023214,2]
[381109758,1756048256827,-773.21,0.00023214,2]
[381109759,1756048256836,-400.0,0.00023214,2]
[381109760,1756048256845,-400.0,0.00023214,2]
[381109761,1756048256855,-400.0,0.00023214,2]
[381109762,1756048256864,-401.03642199,0.00023214,2]
[381109763,1756048256874,-400.0,0.00023214,2]
[381109764,1756048256885,-400.0,0.00023214,2]
[381109765,1756048256895,-400.0,0.00023214,2]
[381109766,1756048256906,-1484.93,0.00023214,2]
[381109767,1756048256915,-1058.28,0.00023214,2]
[381109768,1756048256926,-400.0,0.00023214,2]
[381109769,1756048256935,-400.0,0.00023214,2]
[381109770,1756048256945,-1166.08,0.00023214,2]
[381109771,1756048256954,-400.0,0.00023214,2]
[381109772,1756048256965,-400.0,0.00023214,2]
[381109773,1756048256974,-400.0,0.00023214,2]
[381109774,1756048256984,-400.0,0.00023214,2]
[381109775,1756048256993,-400.0,0.00023214,2]
[381109776,1756048257002,-395.48542287,0.00023214,2]
[381109777,1756048257011,-400.0,0.00023214,2]
[381109778,1756048257020,-400.0,0.00023214,2]
[381109779,1756048257030,-718.95,0.00023214,2]
[381109780,1756048257039,-400.0,0.00023214,2]
[381109781,1756048257049,-1741.53,0.00023214,2]
[381109782,1756048257059,-400.0,0.00023214,2]
[381109783,1756048257068,-400.4708082,0.00023214,2]
[381109784,1756048257078,-400.0,0.00023214,2]
[381109785,1756048257088,-400.0,0.00023214,2]
[381109786,1756048257098,-400.0,0.00023214,2]
[381109787,1756048257107,-400.0,0.00023214,2]
[381109788,1756048257116,-400.0,0.00023214,2]
[381109789,1756048257126,-400.0,0.00023214,2]
[381109790,1756048257135,-400.0,0.00023214,2]
[381109791,1756048257145,-987.57,0.00023214,2]
[381109792,1756048257154,-400.0,0.00023214,2]
[381109793,1756048257163,-400.41494467,0.00023214,2]
[381109794,1756048257173,-400.0,0.00023214,2]
[381109795,1756048257186,-1053.31,0.00023214,2]
[381109796,1756048257195,-400.0,0.00023214,2]
[381109797,1756048257204,-400.82934607,0.00023214,2]
[381109798,1756048257214,-400.26,0.00023214,2]
[381109799,1756048257224,-500.0,0.00023214,2]
[381109800,1756048257234,-400.0,0.00023214,2]
[381109801,1756048257245,-400.0,0.00023214,2]
[381109802,1756048257256,-1110.29,0.00023214,2]
[381109803,1756048257266,-691.03,0.00023214,2]
[381109804,1756048257275,-400.0,0.00023214,2]
[381109805,1756048257284,-400.0,0.00023214,2]
[381109806,1756048257294,-400.0,0.00023214,2]